bitfinex-derivatives/quotes_BNBF0:USTF0_20260110
["timestamp","ask_amount","ask_price","bid_price","bid_amount"]
[1768086160402,0.19230716,905.53,904.43,0.68104455]
[1768086160598,0.19230716,905.53,904.44,0.68104455]
[1768086160797,0.19230716,905.53,904.45,0.68104455]
[1768086161101,0.19230716,905.53,904.46,0.68104455]
[1768086161302,0.19230716,905.53,904.47,0.68104455]
[1768086161599,0.19230716,905.53,904.48,0.68104455]
[1768086161798,0.19230716,905.53,904.49,0.68104455]
[1768086161996,0.19230716,905.53,904.5,0.68104455]
[1768086162201,0.19230716,905.53,904.51,0.68104455]
[1768086162400,0.19230716,905.53,904.52,0.68104455]
[1768086162598,0.19230716,905.53,904.53,0.68104455]
[1768086162796,0.19230716,905.53,904.54,0.68104455]
[1768086163000,0.19230716,905.53,904.55,0.68104455]
[1768086163200,0.19230716,905.53,904.56,0.68104455]
[1768086163400,0.19230716,905.53,904.57,0.68104455]
[1768086163598,0.19230716,905.53,904.42,1.616]
[1768086163797,0.19230716,905.53,904.43,0.68079053]
[1768086163998,0.19230716,905.53,904.44,0.68079053]
[1768086164203,0.19230716,905.53,904.45,0.68079053]
[1768086164403,0.19230716,905.53,904.46,0.68079053]
[1768086164603,0.19230716,905.53,904.47,0.68079053]
[1768086164902,0.19230716,905.53,904.48,0.68079053]
[1768086165101,0.19230716,905.53,904.49,0.68079053]
[1768086165305,0.19230716,905.53,904.5,0.68079053]
[1768086165503,0.19230716,905.53,904.51,0.68079053]
[1768086165705,0.19230716,905.53,904.52,0.68079053]
[1768086165904,0.19230716,905.53,904.53,0.68079053]
[1768086166104,0.19230716,905.53,904.54,0.68079053]
[1768086166404,0.19230716,905.53,904.55,0.68079053]
[1768086166604,0.19230716,905.53,904.56,0.68079053]
[1768086166804,0.19230716,905.53,904.57,0.68079053]
[1768086167005,0.19230716,905.53,904.42,1.616]
[1768086167209,0.19230716,905.53,904.43,0.68056245]
[1768086167408,0.19230716,905.53,904.44,0.68056245]
[1768086167607,0.19230716,905.53,904.45,0.68056245]
[1768086167809,0.19230716,905.53,904.46,0.68056245]
[1768086168007,0.19230716,905.53,904.47,0.68056245]
[1768086168210,0.19230716,905.53,904.48,0.68056245]
[1768086168407,0.19230716,905.53,904.49,0.68056245]
[1768086168610,0.19230716,905.53,904.5,0.68056245]
[1768086168910,0.19230716,905.53,904.51,0.68056245]
[1768086169110,0.19230716,905.53,904.52,0.68056245]
[1768086169311,0.19230716,905.53,904.53,0.68056245]
[1768086169604,0.19230716,905.53,904.54,0.68056245]
[1768086169810,0.19230716,905.53,904.55,0.68056245]
[1768086170105,0.19230716,905.53,904.56,0.68056245]
[1768086170310,0.19230716,905.53,904.42,1.616]
[1768086170507,0.19230716,905.53,904.43,0.68038784]
[1768086170810,0.19230716,905.53,904.44,0.68038784]
[1768086171010,0.19230716,905.53,904.45,0.68038784]
[1768086171209,0.19230716,905.53,904.46,0.68038784]
[1768086171410,0.19230716,905.53,904.47,0.68038784]
[1768086171610,0.19230716,905.53,904.48,0.68038784]
[1768086171905,0.19230716,905.53,904.49,0.68038784]
[1768086172110,0.19230716,905.53,904.5,0.68038784]
[1768086172307,0.19230716,905.53,904.51,0.68038784]
[1768086172508,0.19230716,905.53,904.52,0.68038784]
[1768086172712,0.19230716,905.53,904.42,1.616]
[1768086172713,0.19230716,905.53,904.53,0.68038784]
[1768086172908,0.19230716,905.53,904.54,0.68038784]
[1768086173108,0.19230716,905.53,904.55,0.68038784]
[1768086173308,0.19230716,905.53,904.56,0.68038784]
[1768086173513,0.19230716,905.53,904.42,1.616]
[1768086173713,0.19230716,905.53,904.43,0.68032414]
[1768086174013,0.19230716,905.53,904.44,0.68032414]
[1768086174213,0.19230716,905.53,904.45,0.68032414]
[1768086174414,0.19230716,905.53,904.46,0.68032414]
[1768086174613,0.19230716,905.53,904.47,0.68032414]
[1768086174814,0.19230716,905.53,904.48,0.68032414]
[1768086175011,0.19230716,905.53,904.49,0.68032414]
[1768086175311,0.19230716,905.53,904.5,0.68032414]
[1768086175510,0.19230716,905.53,904.51,0.68032414]
[1768086175711,0.19230716,905.53,904.52,0.68032414]
[1768086175915,0.19230716,905.53,904.53,0.68032414]
[1768086176211,0.19230716,905.53,904.54,0.68032414]
[1768086176411,0.19230716,905.53,904.55,0.68032414]
[1768086176614,0.19230716,905.53,904.56,0.68032414]
[1768086176812,0.19230716,905.53,904.57,0.68032414]
[1768086177115,0.19230716,905.53,904.58,0.68032414]
[1768086177312,0.19230716,905.53,904.59,0.68032414]
[1768086177612,0.19230716,905.53,904.6,0.68032414]
[1768086177812,0.19230716,905.53,904.61,0.68032414]
[1768086178014,0.19230716,905.53,904.42,1.616]
[1768086178215,0.19230716,905.53,904.43,0.68040616]
[1768086178418,0.19230716,905.53,904.44,0.68040616]
[1768086178713,0.19230716,905.53,904.45,0.68040616]
[1768086178917,0.19230716,905.53,904.46,0.68040616]
[1768086179119,0.19230716,905.53,904.47,0.68040616]
[1768086179319,0.19230716,905.53,904.48,0.68040616]
[1768086179614,0.19230716,905.53,904.49,0.68040616]
[1768086179819,0.19230716,905.53,904.5,0.68040616]
[1768086180114,0.19230716,905.53,904.51,0.68040616]
[1768086180318,0.19230716,905.53,904.52,0.68040616]
[1768086180518,0.19230716,905.53,904.53,0.68040616]
[1768086180719,0.19230716,905.53,904.54,0.68040616]
[1768086181019,0.19230716,905.53,904.55,0.68040616]
[1768086181220,0.19230716,905.53,904.56,0.68040616]
[1768086181418,0.19230716,905.53,904.57,0.68040616]
[1768086181618,0.19230716,905.53,904.58,0.68040616]
[1768086181818,0.19230716,905.53,904.59,0.68040616]
[1768086182117,0.19230716,905.53,904.6,0.68040616]
[1768086182315,0.19230716,905.53,904.61,0.68040616]
[1768086182518,0.19230716,905.53,904.42,1.616]
[1768086182718,0.19230716,905.53,904.43,0.68092128]
[1768086182916,0.19230716,905.53,904.44,0.68092128]
[1768086183116,0.19230716,905.53,904.45,0.68092128]
[1768086183318,0.19230716,905.53,904.46,0.68092128]
[1768086183517,0.19230716,905.53,904.47,0.68092128]
[1768086183823,0.19230716,905.53,904.48,0.68092128]
[1768086184116,0.19230716,905.53,904.49,0.68092128]
[1768086184323,0.19230716,905.53,904.5,0.68092128]
[1768086184519,0.19230716,905.53,904.51,0.68092128]
[1768086184720,0.19230716,905.53,904.52,0.68092128]
[1768086184922,0.19230716,905.53,904.53,0.68092128]
[1768086185124,0.19230716,905.53,904.54,0.68092128]
[1768086185420,0.19230716,905.53,904.55,0.68092128]
[1768086185724,0.19230716,905.53,904.56,0.68092128]
[1768086185924,0.19230716,905.53,904.57,0.68092128]
[1768086186222,0.19230716,905.53,904.58,0.68092128]
[1768086186420,0.19230716,905.53,904.59,0.68092128]
[1768086186626,0.19230716,905.53,904.6,0.68092128]
[1768086186821,0.19230716,905.53,904.61,0.68092128]
[1768086187021,0.19230716,905.53,904.62,0.68092128]
[1768086187225,0.19230716,905.53,904.63,0.68092128]
[1768086187425,0.19230716,905.53,904.64,0.68092128]
[1768086187725,0.19230716,905.53,904.42,1.616]
[1768086187923,0.19230716,905.53,904.43,0.681142]
[1768086188121,0.19230716,905.53,904.45,0.82945423]
[1768086188326,0.19230716,905.53,904.47,0.82945423]
[1768086188626,2.73162362,906.65,904.74,0.82945423]
[1768086188927,0.19218344,905.79,904.75,1.51059623]
[1768086189223,2.73162362,906.78,904.76,0.681142]
[1768086189427,0.19215425,905.76,904.77,0.681142]
[1768086189628,0.19215425,905.76,904.78,0.681142]
[1768086189824,2.73162362,906.82,904.79,0.681142]
[1768086190028,0.1921447,905.82,904.8,0.681142]
[1768086190225,2.73162362,906.82,904.81,0.681142]
[1768086190425,2.73162362,906.85,904.82,0.681142]
[1768086190626,0.19214152,905.82,904.83,0.681142]
[1768086190829,2.73162362,906.85,904.84,0.681142]
[1768086191129,0.19213834,905.82,904.85,0.681142]
[1768086191323,2.73162362,906.87,904.86,0.681142]
[1768086191528,2.73162362,906.87,904.87,0.681142]
[1768086191823,2.73162362,906.87,904.88,0.681142]
[1768086192027,2.73162362,906.87,904.89,0.681142]
[1768086192226,0.19213516,906.38,904.9,0.681142]
[1768086192430,0.19213516,906.38,904.91,0.681142]
[1768086192630,0.19213516,906.38,904.92,0.681142]
[1768086192930,0.19213516,906.38,904.93,0.681142]
[1768086193127,0.19213516,906.38,904.94,0.681142]
[1768086193426,0.19213516,906.38,904.95,0.681142]
[1768086193727,0.19213516,906.38,904.96,0.681142]
[1768086193930,0.19213516,906.38,904.97,0.681142]
[1768086194130,0.19213516,906.38,904.98,0.681142]
[1768086194325,0.19213516,906.38,904.99,0.681142]
[1768086194530,0.19213516,906.38,905.0,0.681142]
[1768086194731,0.19213516,906.38,905.01,0.681142]
[1768086195031,0.19213516,906.38,905.02,0.681142]
[1768086195233,0.19213516,906.38,905.03,0.681142]
[1768086195426,0.19213516,906.38,905.04,0.681142]
[1768086195730,0.19213516,906.38,905.05,0.681142]
[1768086195929,0.19213516,906.38,905.06,0.681142]
[1768086196128,0.19213516,906.38,905.07,0.681142]
[1768086196331,0.19213516,906.38,905.08,0.681142]
[1768086196529,0.19213516,906.38,905.09,0.681142]
[1768086196731,0.19213516,906.38,905.1,0.681142]
[1768086196930,0.19213516,906.38,905.11,0.681142]
[1768086197128,0.19213516,906.38,905.12,0.681142]
[1768086197330,0.19213516,906.38,905.13,0.681142]
[1768086197529,0.19213516,906.38,905.14,0.681142]
[1768086197829,0.19213516,906.38,905.15,0.681142]
[1768086198030,0.19213516,906.38,905.16,0.681142]
[1768086198232,0.19213516,906.38,905.17,0.681142]
[1768086198431,0.19213516,906.38,905.18,0.681142]
[1768086198631,0.19213516,906.38,905.19,0.681142]
[1768086198932,0.19213516,906.38,905.2,0.681142]
[1768086199136,0.19213516,906.38,905.21,0.681142]
[1768086199332,0.19213516,906.38,904.91,0.82945423]
[1768086199535,0.19213516,906.38,904.92,0.67558542]
[1768086199732,0.19213516,906.38,904.93,0.67558542]
[1768086199937,0.19213516,906.38,904.94,0.67558542]
[1768086200238,0.19213516,906.38,904.95,0.67558542]
[1768086200434,0.19213516,906.38,904.96,0.67558542]
[1768086200738,0.19213516,906.38,904.97,0.67558542]
[1768086200939,0.19213516,906.38,904.98,0.67558542]
[1768086201135,0.19213516,906.38,904.99,0.67558542]
[1768086201336,0.19213516,906.38,905.0,0.67558542]
[1768086201536,0.19213516,906.38,905.17,0.82945423]
[1768086201838,0.19213516,906.38,905.18,0.67558542]
[1768086202035,0.19213516,906.38,905.19,0.67558542]
[1768086202240,0.19213516,906.38,905.2,0.67558542]
[1768086202438,0.19213516,906.38,905.21,0.67558542]
[1768086202636,0.19213516,906.38,905.22,0.67558542]
[1768086202838,0.19213516,906.38,905.23,0.67558542]
[1768086203038,0.19213516,906.38,905.24,0.67558542]
[1768086203238,0.19213516,906.38,905.25,0.67558542]
[1768086203442,0.19213516,906.38,905.26,0.67558542]
[1768086203742,0.19213516,906.38,905.27,0.67558542]
[1768086204043,0.19213516,906.38,905.28,0.67558542]
[1768086204243,0.19213516,906.38,905.29,0.67558542]
[1768086204444,0.19213516,906.38,905.3,0.67558542]
[1768086204740,0.19213516,906.38,905.28,8.35832428]
[1768086204741,2.73162362,907.76,905.31,0.67558542]
[1768086205043,0.19199523,906.49,905.32,0.67558542]
[1768086205239,0.19199523,906.49,905.28,8.35832428]
[1768086205240,2.73162362,907.82,905.33,0.67558542]
[1768086205440,2.73162362,907.82,905.34,0.67558542]
[1768086205643,0.19198888,906.5,905.35,0.67558542]
[1768086205839,2.73162362,907.85,905.36,0.67558542]
[1768086206040,2.73162362,907.9,905.37,0.67558542]
[1768086206345,2.73162362,908.11,905.38,0.67558542]
[1768086206544,2.73162362,908.11,905.39,0.67558542]
[1768086206740,2.73162362,908.1,905.4,0.67558542]
[1768086206941,0.19195393,907.44,905.41,0.67558542]
[1768086207141,0.19195393,907.44,905.42,0.67558542]
[1768086207341,0.19195393,907.44,905.43,0.67558542]
[1768086207542,0.19195393,907.44,905.44,0.67558542]
[1768086207747,0.19195393,907.44,905.45,0.67558542]
[1768086208046,0.19195393,907.44,905.46,0.67558542]
[1768086208246,0.19195393,907.44,905.47,0.67558542]
[1768086208445,0.19195393,907.44,905.48,0.67558542]
[1768086208646,0.19195393,907.44,905.49,0.67558542]
[1768086208843,0.19195393,907.44,905.28,9.18777851]
[1768086208844,0.19195393,907.44,905.5,0.67558542]
[1768086209045,0.19195393,907.44,905.51,0.67558542]
[1768086209244,0.19195393,907.44,905.52,0.67558542]
[1768086209443,0.19195393,907.44,905.53,0.67558542]
[1768086209646,0.19195393,907.44,905.54,0.67558542]
[1768086209847,0.19195393,907.44,905.55,0.67558542]
[1768086210142,0.19195393,907.44,905.56,0.67558542]
[1768086210344,0.19195393,907.44,905.28,8.35832428]
[1768086210541,0.19195393,907.44,905.29,0.67262589]
[1768086210744,0.19195393,907.44,905.3,0.67262589]
[1768086210943,0.19195393,907.44,905.31,0.67262589]
[1768086211247,0.19195393,907.44,905.32,0.67262589]
[1768086211447,0.19195393,907.44,905.33,0.67262589]
[1768086211647,0.19195393,907.44,905.34,0.67262589]
[1768086211847,0.19195393,907.44,905.35,0.67262589]
[1768086212045,0.19195393,907.44,905.36,0.67262589]
[1768086212246,0.19195393,907.44,905.37,0.67262589]
[1768086212446,0.19195393,907.44,905.38,0.67262589]
[1768086212646,0.19195393,907.44,905.28,8.35832428]
[1768086212647,0.19195393,907.44,905.39,0.67262589]
[1768086212844,0.19195393,907.44,905.4,0.67262589]
[1768086213046,0.19195393,907.44,905.41,0.67262589]
[1768086213247,0.19195393,907.44,905.42,0.67262589]
[1768086213447,0.19195393,907.44,905.43,0.67262589]
[1768086213650,0.19195393,907.44,905.44,0.67262589]
[1768086213849,0.19195393,907.44,905.45,0.67262589]
[1768086214046,0.19195393,907.44,905.46,0.67262589]
[1768086214250,0.19195393,907.44,905.47,0.67262589]
[1768086214451,0.19195393,907.44,905.48,0.67262589]
[1768086214651,0.19195393,907.44,905.49,0.67262589]
[1768086214851,0.19195393,907.44,905.5,0.67262589]
[1768086215051,0.19195393,907.44,905.51,0.67262589]
[1768086215250,0.19195393,907.44,905.52,0.67262589]
[1768086215447,0.19195393,907.44,905.53,0.67262589]
[1768086215651,0.19195393,907.44,905.28,8.35832428]
[1768086215847,0.19195393,907.44,905.29,0.67148232]
[1768086216053,0.19195393,907.44,905.3,0.67148232]
[1768086216253,0.19195393,907.44,905.31,0.67148232]
[1768086216550,0.19195393,907.44,905.32,0.67148232]
[1768086216749,0.19195393,907.44,905.33,0.67148232]
[1768086216954,0.19195393,907.44,905.34,0.67148232]
[1768086217253,0.19195393,907.44,905.35,0.67148232]
[1768086217450,0.19195393,907.44,905.28,8.35832428]
[1768086230360,0.19195393,907.44,905.29,0.67667071]
[1768086230565,0.19195393,907.44,905.3,0.67667071]
[1768086230860,0.19195393,907.44,905.28,8.35832428]
[1768086231065,0.19195393,907.44,905.29,0.67667071]
[1768086231361,0.19195393,907.44,905.3,0.67667071]
[1768086231564,0.19195393,907.44,905.31,0.67667071]
[1768086231765,0.19195393,907.44,905.32,0.67667071]
[1768086231962,0.19195393,907.44,905.33,0.67667071]
[1768086232162,0.19195393,907.44,905.34,0.67667071]
[1768086232366,0.19195393,907.44,905.35,0.67667071]
[1768086232563,0.19195393,907.44,905.36,0.67667071]
[1768086232861,0.19195393,907.44,905.37,0.67667071]
[1768086233066,0.19195393,907.44,905.38,0.67667071]
[1768086233262,0.19195393,907.44,905.39,0.67858356]
[1768086233566,0.19195393,907.44,905.4,0.67858356]
[1768086233768,0.19195393,907.44,905.41,0.67858356]
[1768086233968,0.19195393,907.44,905.28,8.35832428]
[1768086234166,0.19195393,907.44,905.29,0.67877846]
[1768086234466,0.19195393,907.44,905.3,0.67877846]
[1768086234666,0.19195393,907.44,905.31,0.67877846]
[1768086234872,0.19195393,907.44,905.32,0.67877846]
[1768086235067,0.19195393,907.44,905.33,0.67877846]
[1768086235271,0.19195393,907.44,905.34,0.67877846]
[1768086235470,0.19195393,907.44,905.35,0.67877846]
[1768086235668,0.19195393,907.44,905.36,0.67877846]
[1768086235867,0.19195393,907.44,905.37,0.67877846]
[1768086236067,0.19195393,907.44,905.38,0.67877846]
[1768086236371,0.19195393,907.44,905.39,0.67877846]
[1768086236570,0.19195393,907.44,905.4,0.67877846]
[1768086236772,0.19195393,907.44,905.41,0.67877846]
[1768086237072,0.19195393,907.44,905.42,0.67877846]
[1768086237272,0.19195393,907.44,905.43,0.67877846]
[1768086237472,0.19195393,907.44,905.44,0.67877846]
[1768086237673,0.19195393,907.44,905.45,0.67877846]
[1768086237873,0.19195393,907.44,905.46,0.67877846]
[1768086238071,0.19195393,907.44,905.47,0.67877846]
[1768086238370,0.19195393,907.44,905.48,0.67877846]
[1768086238569,0.19195393,907.44,905.49,0.67877846]
[1768086238769,0.19195393,907.44,905.5,0.67877846]
[1768086238969,0.19195393,907.44,905.51,0.68007226]
[1768086239168,0.19195393,907.44,905.52,0.68026754]
[1768086239371,0.19195393,907.44,905.28,8.35832428]
[1768086239670,0.19195393,907.44,905.29,0.68026754]
[1768086239874,0.19195393,907.44,905.3,0.68026754]
[1768086240170,0.19195393,907.44,905.31,0.68026754]
[1768086240373,0.19195393,907.44,905.32,0.68026754]
[1768086240575,0.19195393,907.44,905.33,0.68026754]
[1768086240773,0.19195393,907.44,905.34,0.68026754]
[1768086241069,2.73162362,907.42,905.35,0.68026754]
[1768086241267,2.73162362,907.42,905.36,0.68026754]
[1768086241468,2.73162362,907.42,905.37,0.68026754]
[1768086241670,2.73162362,907.42,905.38,0.68026754]
[1768086241874,2.73162362,907.42,905.39,0.68026754]
[1768086242173,2.73162362,907.42,905.4,0.68026754]
[1768086242367,2.73162362,907.42,905.41,0.68026754]
[1768086242573,2.73162362,907.42,905.42,0.68026754]
[1768086242770,2.73162362,907.41,905.43,0.68026754]
[1768086242970,2.73162362,907.41,905.44,0.68026754]
[1768086243171,2.73162362,907.41,905.45,0.68026754]
[1768086243376,2.73162362,907.41,905.46,0.68026754]
[1768086243573,2.73162362,907.41,905.47,0.68026754]
[1768086243876,2.73162362,907.41,905.48,0.68026754]
[1768086244178,2.73162362,907.4,905.49,0.68026754]
[1768086244375,2.73162362,907.4,905.28,8.35832428]
[1768086244580,2.73162362,907.4,905.29,0.68068722]
[1768086244776,2.73162362,907.4,905.3,0.68068722]
[1768086244978,2.73162362,907.4,905.31,0.68068722]
[1768086245278,2.73162362,907.4,905.32,0.68068722]
[1768086245477,2.73162362,907.4,905.33,0.68068722]
[1768086245678,2.73162362,907.4,905.34,0.68068722]
[1768086245979,2.73162362,907.38,905.35,0.68068722]
[1768086246279,2.73162362,907.36,905.36,0.68068722]
[1768086246475,2.73162362,907.36,905.37,0.68068722]
[1768086246675,2.73162362,907.36,905.38,0.68068722]
[1768086246879,2.73162362,907.36,905.28,8.35832428]
[1768086246880,2.73162362,907.36,905.39,0.68068722]
[1768086247077,2.73162362,907.36,905.4,0.68068722]
[1768086247277,2.73162362,907.34,905.41,0.68068722]
[1768086247475,2.73162362,907.34,905.42,0.68068722]
[1768086247775,2.73162362,907.34,905.43,0.68068722]
[1768086247980,2.73162362,907.34,905.44,0.68068722]
[1768086248179,2.73162362,907.34,905.44,2.03]
[1768086248379,2.73162362,907.32,905.44,2.03]
[1768086249381,2.73162362,907.31,905.44,2.03]
[1768086251479,2.73162362,907.3,905.44,2.03]
[1768086252681,2.73162362,907.29,905.44,2.03]
[1768086253482,2.73162362,907.29,905.45,0.68095544]
[1768086253683,2.73162362,907.32,905.46,0.68095544]
[1768086253882,2.73162362,907.32,905.44,2.03]
[1768086254080,2.73162362,907.32,905.45,0.68092534]
[1768086254280,2.73162362,907.32,905.46,0.68092534]
[1768086254480,2.73162362,907.32,905.47,0.68092534]
[1768086254681,2.73162362,907.31,905.44,2.03]
[1768086254881,2.73162362,907.31,905.45,0.68109484]
[1768086255182,2.73162362,907.31,905.46,0.68109484]
[1768086255380,2.73162362,907.31,905.47,0.68109484]
[1768086255584,2.73162362,907.31,905.48,0.68109484]
[1768086255785,2.73162362,907.3,905.44,2.03]
[1768086255981,2.73162362,907.3,905.45,0.68128477]
[1768086256282,2.73162362,907.31,905.46,0.68128477]
[1768086256486,2.73162362,907.31,905.47,0.68128477]
[1768086256686,2.73162362,907.31,905.48,0.68128477]
[1768086256886,2.73162362,907.31,905.49,0.68128477]
[1768086257182,2.73162362,907.3,905.5,0.68128477]
[1768086257386,2.73162362,907.3,905.51,0.68128477]
[1768086257683,2.73162362,907.3,905.52,0.68128477]
[1768086257881,2.73162362,907.3,905.53,0.68128477]
[1768086258080,2.73162362,907.3,905.54,0.68128477]
[1768086258284,2.73162362,907.28,905.55,0.68215055]
[1768086258483,2.73162362,907.28,905.56,0.68215055]
[1768086258684,2.73162362,907.28,905.57,0.68215055]
[1768086258883,2.73162362,907.33,905.58,0.68215055]
[1768086259083,2.73162362,907.33,905.59,0.68215055]
[1768086259287,2.73162362,907.33,905.6,0.68215055]
[1768086259485,2.73162362,907.31,905.61,0.68215055]
[1768086259683,2.73162362,907.31,905.62,0.68215055]
[1768086259884,2.73162362,907.32,905.63,0.68215055]
[1768086260084,2.73162362,907.32,905.64,0.68215055]
[1768086260284,2.73162362,907.32,905.65,0.68215055]
[1768086260489,2.73162362,907.29,905.66,0.68215055]
[1768086260786,2.73162362,907.29,905.67,0.68215055]
[1768086260986,2.73162362,907.29,905.68,0.68215055]
[1768086261185,2.73162362,907.29,905.69,0.68215055]
[1768086261492,2.73162362,907.28,905.7,0.68215055]
[1768086261692,2.73162362,907.28,905.44,2.03]
[1768086261891,2.73162362,907.28,905.45,0.68343468]
[1768086262092,2.73162362,907.28,905.46,0.68343468]
[1768086262388,2.73162362,907.28,905.47,0.68343468]
[1768086262691,2.73162362,907.26,905.48,0.68343468]
[1768086262888,2.73162362,907.26,905.49,0.68343468]
[1768086263087,2.73162362,907.26,905.5,0.68343468]
[1768086263293,2.73162362,907.26,905.51,0.68343468]
[1768086263595,2.73162362,907.26,905.52,0.68343468]
[1768086263791,2.73162362,907.26,905.53,0.68343468]
[1768086263994,2.73162362,907.26,905.54,0.68343468]
[1768086264295,2.73162362,907.26,905.55,0.68343468]
[1768086264492,2.73162362,907.26,905.56,0.68343468]
[1768086264695,2.73162362,907.26,905.57,0.68343468]
[1768086264896,2.73162362,907.26,905.58,0.68343468]
[1768086265095,2.73162362,907.29,905.59,0.68343468]
[1768086265292,2.73162362,907.29,905.6,0.68343468]
[1768086265492,2.73162362,907.38,905.61,0.68343468]
[1768086265697,2.73162362,907.38,905.62,0.68343468]
[1768086265897,2.73162362,907.38,905.63,0.68343468]
[1768086266097,2.73162362,907.36,905.64,0.68343468]
[1768086266294,2.73162362,907.36,905.65,0.68343468]
[1768086266497,2.73162362,907.36,905.66,0.68343468]
[1768086266794,2.73162362,907.37,905.67,0.68343468]
[1768086266996,2.73162362,907.37,905.68,0.68343468]
[1768086267199,2.73162362,907.37,905.69,0.68343468]
[1768086267400,2.73162362,907.37,905.7,0.68343468]
[1768086267700,2.73162362,907.36,905.71,0.68343468]
[1768086268000,2.73162362,907.36,905.72,0.68343468]
[1768086268300,2.73162362,907.36,905.73,0.68343468]
[1768086268497,2.73162362,907.36,905.74,0.68343468]
[1768086268800,2.73162362,907.37,905.75,0.68343468]
[1768086269101,2.73162362,907.37,905.46,0.82945423]
[1768086269396,2.73162362,907.37,905.47,0.68251517]
[1768086269600,2.73162362,907.37,905.48,0.68251517]
[1768086269798,2.73162362,907.37,905.49,0.68251517]
[1768086269999,2.73162362,907.37,905.5,0.68251517]
[1768086270299,2.73162362,907.38,905.51,0.68251517]
[1768086270498,2.73162362,907.38,905.52,0.68251517]
[1768086270698,2.73162362,907.38,905.53,0.68251517]
[1768086270898,2.73162362,907.38,905.54,0.68251517]
[1768086271101,2.73162362,907.38,905.55,0.68251517]
[1768086271301,2.73162362,907.38,905.56,0.68251517]
[1768086271500,2.73162362,907.38,905.57,0.68251517]
[1768086271699,2.73162362,907.38,905.58,0.68251517]
[1768086271999,2.73162362,907.37,905.59,0.68251517]
[1768086272203,2.73162362,907.37,905.6,0.68251517]
[1768086272400,2.73162362,907.37,905.61,0.68251517]
[1768086272600,2.73162362,907.37,905.62,0.68251517]
[1768086272900,2.73162362,907.37,905.63,0.68251517]
[1768086273099,2.73162362,907.37,905.64,0.68251517]
[1768086273301,2.73162362,907.38,905.65,0.68251517]
[1768086273503,2.73162362,907.38,905.66,0.68251517]
[1768086273704,2.73162362,907.38,905.67,0.68251517]
[1768086273903,0.19195393,907.44,905.44,2.03]
[1768086273904,2.73162362,907.39,905.68,0.68251517]
[1768086274200,2.73162362,907.39,905.69,0.68251517]
[1768086274404,2.73162362,907.39,905.7,0.68251517]
[1768086274604,2.73162362,907.39,905.71,0.68251517]
[1768086274803,2.73162362,907.39,905.72,0.68251517]
[1768086275001,2.73162362,907.39,905.73,0.68251517]
[1768086275200,2.73162362,907.39,905.44,2.85945423]
[1768086275503,2.73162362,907.4,905.45,0.68204803]
[1768086275801,2.73162362,907.4,905.46,0.68204803]
[1768086276005,0.19195393,907.44,905.47,0.68204803]
[1768086276006,2.73162362,907.41,905.47,0.68204803]
[1768086276204,2.73162362,907.41,905.48,0.68204803]
[1768086276405,2.73162362,907.41,905.49,0.68204803]
[1768086276605,2.73162362,907.42,905.5,0.68204803]
[1768086276802,2.73162362,907.42,905.51,0.68204803]
[1768086277001,2.73162362,907.42,905.45,0.82945423]
[1768086277002,2.73162362,907.42,905.52,0.68204803]
[1768086277206,2.73162362,907.42,905.53,0.68204803]
[1768086277406,2.73162362,907.42,905.54,0.68204803]
[1768086277702,2.73162362,907.42,905.55,0.68204803]
[1768086278005,2.73162362,907.42,905.56,0.68204803]
[1768086278205,2.73162362,907.42,905.57,0.68204803]
[1768086278406,2.73162362,907.42,905.58,0.68204803]
[1768086278607,2.73162362,907.42,905.59,0.68204803]
[1768086278804,2.73162362,907.42,905.6,0.68204803]
[1768086279105,2.73162362,907.42,905.61,0.68204803]
[1768086279303,2.73162362,907.42,905.62,0.68204803]
[1768086279502,2.73162362,907.42,905.63,0.68204803]
[1768086279804,2.73162362,907.42,905.64,0.68204803]
[1768086280004,2.73162362,907.42,905.65,0.68204803]
[1768086280208,2.73162362,907.42,905.66,0.68204803]
[1768086280408,2.73162362,907.42,905.67,0.68204803]
[1768086280608,2.73162362,907.42,905.68,0.68204803]
[1768086280904,2.73162362,907.42,905.69,0.68204803]
[1768086281104,2.73162362,907.42,905.7,0.68204803]
[1768086281308,2.73162362,907.42,905.71,0.68204803]
[1768086281609,2.73162362,907.42,905.72,0.68204803]
[1768086281808,2.73162362,907.42,905.73,0.68204803]
[1768086282009,2.73162362,907.42,905.62,2.449]
[1768086282304,2.73162362,907.42,905.63,0.68186998]
[1768086282509,2.73162362,907.42,905.64,0.68186998]
[1768086282707,2.73162362,907.41,905.65,0.68186998]
[1768086282910,2.73162362,907.41,905.66,0.68186998]
[1768086283109,2.73162362,907.41,905.67,0.68186998]
[1768086283410,2.73162362,907.41,905.68,0.68186998]
[1768086283608,2.73162362,907.41,905.69,0.68186998]
[1768086283812,2.73162362,907.41,905.7,0.68186998]
[1768086284111,2.73162362,907.41,905.71,0.68186998]
[1768086284311,2.73162362,907.41,905.72,0.68186998]
[1768086284512,2.73162362,907.41,905.62,2.449]
[1768086284713,2.73162362,907.41,905.63,0.6818705]
[1768086284912,2.73162362,907.35,905.64,0.6818705]
[1768086285110,2.73162362,907.35,905.65,0.6818705]
[1768086285311,2.73162362,907.34,905.62,2.449]
[1768086285511,2.73162362,907.34,905.63,0.68203074]